fUSD/lending_fUSD_20250325
["ID","MTS","AMOUNT","RATE_DAILY","PERIOD"]
[356670402,1742940644815,-500.0,0.00046849,120]
[356670404,1742940644825,-500.54,0.00046849,120]
[356670406,1742940644835,-500.0,0.00046849,120]
[356670408,1742940644843,-539.52,0.00046849,120]
[356670410,1742940644852,-384.28833685,0.00046849,120]
[356670412,1742940644861,-500.0,0.00046849,120]
[356670414,1742940644870,-500.0,0.00046849,120]
[356670416,1742940644879,-500.0,0.00046849,120]
[356670418,1742940644888,-758.73,0.00046849,120]
[356670420,1742940644898,-500.0,0.00046849,2]
[356670422,1742940644907,-500.0,0.00046849,120]
[356670424,1742940644916,-500.0,0.00046849,120]
[356670426,1742940644925,-500.0,0.00046849,120]
[356670428,1742940644935,-500.0,0.00046849,120]
[356670430,1742940644944,-1026.37,0.00046849,120]
[356670432,1742940644953,-500.0,0.00046849,120]
[356670434,1742940644962,-500.0,0.00046849,120]
[356670436,1742940644971,-500.0,0.00046849,120]
[356670438,1742940644981,-500.0,0.00046849,120]
[356670440,1742940644990,-6032.53,0.00046849,120]
[356670441,1742940644999,-500.0,0.00046849,120]
[356670442,1742940645007,-456.68140852,0.00046849,120]
[356670443,1742940645016,-500.0,0.00046849,120]
[356670444,1742940645025,-752.46,0.00046849,120]
[356670445,1742940645034,-500.0,0.00046849,120]
[356670446,1742940645042,-500.0,0.00046849,120]
[356670447,1742940645051,-500.0,0.00046849,120]
[356670448,1742940645060,-2106.09,0.00046849,120]
[356670450,1742940645069,-500.0,0.00046849,120]
[356670451,1742940645078,-500.0,0.00046849,120]
[356670453,1742940645088,-500.0,0.00046849,120]
[356670455,1742940645097,-500.0,0.00046849,120]
[356670458,1742940645107,-500.0,0.00046849,120]
[356670460,1742940645118,-1859.8,0.00046849,120]
[356670462,1742940645127,-500.0,0.00046849,120]
[356670464,1742940645136,-1062.08,0.00046849,120]
[356670466,1742940645145,-500.0,0.00046849,120]
[356670467,1742940645154,-500.0,0.00046849,120]
[356670469,1742940645164,-546.18,0.00046849,120]
[356670471,1742940645173,-869.32,0.00046849,120]
[356670474,1742940645182,-500.0,0.00046849,120]
[356670477,1742940645191,-500.0,0.00046849,120]
[356670479,1742940645200,-378.83571482,0.00046849,120]
[356670481,1742940645209,-500.0,0.00046849,120]
[356670483,1742940645218,-500.0,0.00046849,120]
[356670485,1742940645228,-500.0,0.00046849,120]
[356670487,1742940645237,-2063.13,0.00046849,120]
[356670489,1742940645246,-500.0,0.00046849,120]
[356670491,1742940645255,-299.50823225,0.00046849,120]
[356670493,1742940645264,-15681.2025822,0.00046851,3]
[356670495,1742940645274,-150.87,0.00046851,2]
[356670497,1742940645283,-22020.5118891,0.0004686,3]
[356670499,1742940645292,-15681.2025822,0.0004686,3]
[356670501,1742940645301,-169.73885159,0.00046862,28]
[356670503,1742940645310,-44041.0237782,0.0004687,3]
[356670505,1742940645320,-15681.2025822,0.00046878,3]
[356670507,1742940645329,-505.22701037,0.00046883,25]
[356670509,1742940645338,-156.08,0.00046887,2]
[356670511,1742940645348,-500.0,0.00046899,120]
[356670513,1742940645357,-600.43,0.00046899,7]
[356670516,1742940645367,-421.27041229,0.00046899,120]
[356670518,1742940645376,-500.0,0.00046899,120]
[356670520,1742940645386,-500.0,0.00046899,120]
[356670522,1742940645395,-500.0,0.00046899,120]
[356670523,1742940645404,-500.0,0.00046899,120]
[356670525,1742940645413,-500.0,0.00046899,120]
[356670527,1742940645422,-500.0,0.00046899,120]
[356670529,1742940645432,-500.0,0.00046899,120]
[356670532,1742940645441,-500.0,0.00046899,120]
[356670534,1742940645451,-606.88288348,0.00046899,120]
[356670536,1742940645460,-500.0,0.00046899,120]
[356670537,1742940645469,-1136.0,0.00046899,120]
[356670539,1742940645479,-1000.0,0.000469,17]
[356670541,1742940645488,-167.97438597,0.000469,120]
[356670543,1742940645497,-46323.47928887,0.00046903,15]
[356670545,1742940645506,-156.08,0.00046983,2]
[356670547,1742940645515,-150.0,0.00046986,30]
[356670550,1742940645525,-150.0,0.00046986,30]
[356670552,1742940645534,-150.0,0.00046986,30]
[356670553,1742940645543,-150.0,0.00046986,30]
[356670556,1742940645552,-500.0,0.00046989,120]
[356670557,1742940645566,-500.0,0.00046989,120]
[356670560,1742940645576,-500.0,0.00046989,120]
[356670561,1742940645585,-1000.0,0.00046989,120]
[356670563,1742940645594,-664.91,0.00046989,30]
[356670566,1742940645605,-500.0,0.00046989,120]
[356670568,1742940645614,-500.0,0.00046989,120]
[356670569,1742940645623,-500.0,0.00046989,120]
[356670571,1742940645636,-15681.2025822,0.0004699,3]
[356670572,1742940645646,-500.0,0.00046999,120]
[356670574,1742940645655,-1126.11638612,0.00047,10]
[356670575,1742940645664,-21586.0,0.00047,120]
[356670577,1742940645673,-150.0,0.00047,2]
[356670578,1742940645683,-941.23042273,0.00047053,15]
[356670580,1742940645692,-1500.0,0.00047056,7]
[356670581,1742940645701,-156.08,0.00047079,2]
[356670583,1742940645710,-150.0,0.00047083,30]
[356670584,1742940645719,-837.0,0.00047094,30]
[356670586,1742940645728,-150.87,0.00047103,2]
[356670587,1742940645737,-500.0,0.00047112,120]
[356670589,1742940645747,-31362.4051644,0.00047113,3]
[356670590,1742940645756,-2366.84,0.00047123,120]
[356670592,1742940645765,-500.0,0.00047123,2]
[356670594,1742940645774,-500.0,0.00047123,120]
[356670595,1742940645784,-500.0,0.00047123,30]
[356670597,1742940645793,-500.0,0.00047123,120]
[356670598,1742940645802,-500.0,0.00047123,120]
[356670600,1742940645811,-500.0,0.00047123,120]
[356670601,1742940645821,-280.469228,0.00047123,120]
[356670603,1742940645830,-500.0,0.00047123,120]
[356670605,1742940645838,-500.0,0.00047123,120]
[356670606,1742940645847,-590.11,0.00047123,120]
[356670607,1742940645856,-500.0,0.00047123,120]
[356670609,1742940645865,-500.0,0.00047123,120]
[356670611,1742940645874,-500.0,0.00047123,120]
[356670612,1742940645883,-500.0,0.00047123,120]
[356670614,1742940645892,-523.98186386,0.00047123,120]
[356670616,1742940645900,-500.0,0.00047123,120]
[356670617,1742940645909,-6572.25,0.00047123,2]
[356670619,1742940645918,-500.0,0.00047123,120]
[356670620,1742940645927,-500.0,0.00047123,7]
[356670622,1742940645936,-500.0,0.00047123,120]
[356670624,1742940645945,-2745.65,0.00047123,120]
[356670625,1742940645954,-500.0,0.00047123,120]
[356670627,1742940645963,-343.01969774,0.00047123,120]
[356670629,1742940645972,-500.0,0.00047123,120]
[356670630,1742940645981,-1072.46,0.00047123,120]
[356670632,1742940645991,-500.0,0.00047123,120]
[356670634,1742940646000,-500.0,0.00047123,120]
[356670635,1742940646009,-6011.47,0.00047123,120]
[356670637,1742940646019,-500.0,0.00047123,120]
[356670639,1742940646028,-751.26,0.00047123,100]
[356670640,1742940646037,-500.0,0.00047123,120]
[356670642,1742940646046,-1274.62,0.00047123,120]
[356670644,1742940646055,-500.0,0.00047123,120]
[356670645,1742940646064,-500.0,0.00047123,120]
[356670647,1742940646074,-286.22114853,0.00047123,120]
[356670649,1742940646083,-922.06,0.00047123,120]
[356670650,1742940646092,-500.0,0.00047123,120]
[356670652,1742940646101,-500.54,0.00047123,120]
[356670654,1742940646111,-500.0,0.00047123,120]
[356670655,1742940646120,-539.52,0.00047123,120]
[356670657,1742940646130,-500.0,0.00047123,120]
[356670658,1742940646139,-500.0,0.00047123,120]
[356670660,1742940646148,-500.0,0.00047123,120]
[356670662,1742940646157,-758.73,0.00047123,120]
[356670663,1742940646166,-500.0,0.00047123,2]
[356670665,1742940646175,-500.0,0.00047123,120]
[356670667,1742940646186,-500.0,0.00047123,120]
[356670668,1742940646195,-500.0,0.00047123,120]
[356670670,1742940646204,-500.0,0.00047123,120]
[356670672,1742940646214,-1026.37,0.00047123,120]
[356670673,1742940646223,-500.0,0.00047123,120]
[356670675,1742940646232,-500.0,0.00047123,120]
[356670677,1742940646242,-500.0,0.00047123,120]
[356670678,1742940646251,-500.0,0.00047123,120]
[356670680,1742940646260,-6032.53,0.00047123,120]
[356670682,1742940646269,-500.0,0.00047123,120]
[356670683,1742940646278,-500.0,0.00047123,120]
[356670685,1742940646287,-752.46,0.00047123,120]
[356670686,1742940646296,-500.0,0.00047123,120]
[356670688,1742940646306,-499.69329462,0.00047123,120]
[356670690,1742940646315,-500.0,0.00047123,120]
[356670691,1742940646325,-2106.09,0.00047123,120]
[356670693,1742940646334,-500.0,0.00047123,120]
[356670695,1742940646343,-500.0,0.00047123,120]
[356670696,1742940646352,-500.0,0.00047123,120]
[356670706,1742940646475,-500.0,0.00047123,120]
[356670708,1742940646484,-500.0,0.00047123,120]
[356670710,1742940646493,-1859.8,0.00047123,120]
[356670711,1742940646503,-500.0,0.00047123,120]
[356670713,1742940646512,-1062.08,0.00047123,120]
[356670714,1742940646522,-500.0,0.00047123,120]
[356670715,1742940646531,-500.0,0.00047123,120]
[356670716,1742940646540,-546.18,0.00047123,120]
[356670717,1742940646550,-869.32,0.00047123,120]
[356670718,1742940646563,-500.0,0.00047123,120]
[356670719,1742940646573,-500.0,0.00047123,120]
[356670720,1742940646582,-500.0,0.00047123,120]
[356670721,1742940646592,-273.75816107,0.00047123,120]
[356670722,1742940646603,-500.0,0.00047123,120]
[356670723,1742940646612,-2063.13,0.00047123,120]
[356670724,1742940646621,-500.0,0.00047123,120]
[356670726,1742940646632,-150.0,0.0004714,7]
[356670727,1742940646641,-150.0,0.00047153,7]
[356670729,1742940646651,-500.0,0.00047173,120]
[356670731,1742940646660,-600.43,0.00047173,7]
[356670734,1742940646670,-500.0,0.00047173,120]
[356670736,1742940646679,-505.11759612,0.00047173,120]
[356670738,1742940646688,-500.0,0.00047173,120]
[356670740,1742940646698,-500.0,0.00047173,120]
[356670742,1742940646707,-500.0,0.00047173,120]
[356670744,1742940646716,-500.0,0.00047173,120]
[356670745,1742940646726,-500.0,0.00047173,120]
[356670747,1742940646735,-500.0,0.00047173,120]
[356670749,1742940646745,-1136.0,0.00047173,120]
[356670752,1742940646754,-156.08,0.00047174,2]
[356670753,1742940646764,-495.69,0.00047176,2]
[356670756,1742940646773,-150.0,0.0004718,30]
[356670758,1742940646783,-47043.6077467,0.00047218,3]
[356670760,1742940646792,-88888.0,0.00047228,120]
[356670762,1742940646802,-31362.4051644,0.00047231,3]
[356670763,1742940646811,-46323.47928887,0.00047233,15]
[356670766,1742940646822,-150.0,0.00047235,7]
[356670768,1742940646831,-169.57,0.0004724,2]
[356670770,1742940646840,-500.0,0.00047262,120]
[356670772,1742940646850,-500.0,0.00047263,120]
[356670774,1742940646859,-500.0,0.00047263,120]
[356670776,1742940646868,-500.0,0.00047263,120]
[356670778,1742940646877,-1000.0,0.00047263,120]
[356670780,1742940646886,-664.91,0.00047263,30]
[356670782,1742940646895,-500.0,0.00047263,120]
[356670784,1742940646905,-156.08,0.0004727,2]
[356670786,1742940646914,-495.69,0.00047273,2]
[356670788,1742940646923,-150.0,0.00047277,30]
[356670790,1742940646932,-150.0,0.00047287,30]
[356670792,1742940646941,-505.22701037,0.0004729,27]
[356670794,1742940646950,-156.08,0.00047366,2]
[356670796,1742940646959,-495.69,0.0004737,2]
[356670798,1742940646968,-150.0,0.00047374,30]
[356670800,1742940646978,-31362.4051644,0.00047387,3]
[356670802,1742940646987,-2366.84,0.00047397,120]
[356670804,1742940646996,-500.0,0.00047397,2]
[356670806,1742940647005,-500.0,0.00047397,120]
[356670808,1742940647014,-500.0,0.00047397,30]
[356670810,1742940647024,-500.0,0.00047397,120]
[356670812,1742940647033,-500.0,0.00047397,120]
[356670814,1742940647042,-500.0,0.00047397,120]
[356670816,1742940647051,-280.469228,0.00047397,120]
[356670818,1742940647060,-500.0,0.00047397,120]
[356670820,1742940647070,-500.0,0.00047397,120]
[356670822,1742940647079,-590.11,0.00047397,120]
[356670824,1742940647088,-500.0,0.00047397,120]
[356670826,1742940647097,-500.0,0.00047397,120]
[356670828,1742940647106,-500.0,0.00047397,120]
[356670830,1742940647115,-500.0,0.00047397,120]
[356670832,1742940647125,-597.66663152,0.00047397,120]
[356670834,1742940647134,-6572.25,0.00047397,2]
[356670836,1742940647143,-500.0,0.00047397,120]
[356670838,1742940647152,-500.0,0.00047397,7]
[356670840,1742940647162,-402.05700792,0.00047397,120]
[356670842,1742940647171,-2745.65,0.00047397,120]
[356670844,1742940647180,-500.0,0.00047397,120]
[356670846,1742940647189,-500.0,0.00047397,120]
[356670848,1742940647199,-1072.46,0.00047397,120]
[356670850,1742940647208,-500.0,0.00047397,120]
[356670852,1742940647218,-500.0,0.00047397,120]
[356670854,1742940647227,-6011.47,0.00047397,120]
[356670856,1742940647236,-587.03791734,0.00047397,120]
[356670858,1742940647246,-751.26,0.00047397,100]
[356670860,1742940647255,-500.0,0.00047397,120]
[356670862,1742940647263,-1274.62,0.00047397,120]
[356670864,1742940647273,-500.0,0.00047397,120]
[356670866,1742940647282,-500.0,0.00047397,120]
[356670868,1742940647290,-922.06,0.00047397,120]
[356670870,1742940647300,-418.10514555,0.00047397,120]
[356670872,1742940647309,-500.54,0.00047397,120]
[356670874,1742940647318,-500.0,0.00047397,120]
[356670876,1742940647327,-539.52,0.00047397,120]
[356670878,1742940647337,-500.0,0.00047397,120]
[356670880,1742940647346,-643.62489001,0.00047397,120]
[356670882,1742940647356,-500.0,0.00047397,120]
[356670884,1742940647364,-758.73,0.00047397,120]
[356670886,1742940647374,-500.0,0.00047397,2]
[356670888,1742940647383,-500.0,0.00047397,120]
[356670890,1742940647392,-500.0,0.00047397,120]
[356670892,1742940647401,-500.0,0.00047397,120]
[356670894,1742940647410,-500.0,0.00047397,120]
[356670896,1742940647419,-1026.37,0.00047397,120]
[356670898,1742940647429,-500.0,0.00047397,120]
[356670900,1742940647439,-500.0,0.00047397,120]
[356670902,1742940647448,-500.0,0.00047397,120]
[356670904,1742940647457,-500.0,0.00047397,120]
[356670906,1742940647467,-6032.53,0.00047397,120]
[356670908,1742940647476,-500.0,0.00047397,120]
[356670910,1742940647485,-500.0,0.00047397,120]
[356670912,1742940647494,-752.46,0.00047397,120]
[356670914,1742940647503,-500.0,0.00047397,120]
[356670916,1742940647512,-500.0,0.00047397,120]
[356670918,1742940647521,-2106.09,0.00047397,120]
[356670920,1742940647531,-500.0,0.00047397,120]
[356670922,1742940647540,-500.0,0.00047397,120]
[356670924,1742940647549,-500.0,0.00047397,120]
[356670926,1742940647562,-500.0,0.00047397,120]
[356670928,1742940647571,-500.0,0.00047397,120]
[356670930,1742940647580,-1859.8,0.00047397,120]
[356670932,1742940647590,-500.0,0.00047397,120]
[356670934,1742940647599,-1062.08,0.00047397,120]
[356670936,1742940647609,-500.0,0.00047397,120]
[356670938,1742940647618,-500.0,0.00047397,120]
[356670940,1742940647627,-546.18,0.00047397,120]
[356670942,1742940647637,-869.32,0.00047397,120]
[356670944,1742940647647,-500.0,0.00047397,120]
[356670946,1742940647656,-500.0,0.00047397,120]
[356670948,1742940647666,-500.0,0.00047397,120]
[356670950,1742940647676,-500.0,0.00047397,120]
[356670952,1742940647686,-2063.13,0.00047397,120]
[356670954,1742940647695,-500.0,0.00047397,120]
[356670956,1742940647704,-150.0,0.00047444,120]
[356670958,1742940647714,-500.0,0.00047447,120]
[356670960,1742940647723,-600.43,0.00047447,7]
[356670962,1742940647732,-500.0,0.00047447,120]
[356670964,1742940647741,-500.0,0.00047447,120]
[356670965,1742940647750,-500.0,0.00047447,120]
[356670967,1742940647759,-500.0,0.00047447,120]
[356670969,1742940647768,-500.0,0.00047447,120]
[356670971,1742940647777,-500.0,0.00047447,120]
[356670973,1742940647787,-1136.0,0.00047447,120]
[356670975,1742940647795,-150.0,0.0004745,7]
[356670977,1742940647804,-500.0,0.00047455,120]
[356670979,1742940647813,-495.69,0.00047467,2]
[356670981,1742940647823,-150.0,0.00047471,30]
[356670983,1742940647832,-756.53238739,0.00047475,120]
[356670985,1742940647841,-941.23042273,0.00047476,15]
[356670987,1742940647850,-150.0,0.00047487,30]
[356670989,1742940647859,-11534.14935711,0.00047493,30]
[356670991,1742940647868,-1450.9051945,0.00047502,2]
[356670993,1742940647877,-855.37798559,0.00047502,2]
[356670995,1742940647886,-1740.9067144,0.00047502,2]
[356670997,1742940647896,-34026.0,0.00047534,120]
[356670999,1742940647905,-500.0,0.00047537,120]
[356671001,1742940647914,-1000.0,0.00047537,120]
[356671003,1742940647923,-664.91,0.00047537,30]
[356671005,1742940647932,-500.0,0.00047537,120]
[356671007,1742940647942,-500.0,0.00047543,120]
[356671009,1742940647952,-3000.0,0.0004755,30]
[356671011,1742940647961,-46323.47928887,0.00047562,15]
[356671014,1742940647970,-495.69,0.00047564,2]
[356671016,1742940647980,-150.0,0.00047568,30]
[356671018,1742940647990,-837.0,0.00047579,30]
[356671020,1742940647999,-150.0,0.00047587,30]
[356671022,1742940648008,-1300.0,0.000476,17]
[356671024,1742940648017,-720.38,0.00047633,2]
[356671025,1742940648027,-1599.999999,0.00047654,31]
[356671028,1742940648037,-150.0,0.00047658,3]
[356671030,1742940648046,-495.69,0.00047661,2]
[356671031,1742940648055,-150.0,0.00047665,30]
[356671033,1742940648065,-700.0,0.0004767,3]
[356671035,1742940648075,-1200.0,0.0004767,3]
[356671038,1742940648084,-400.0,0.0004767,3]
[356671040,1742940648094,-400.0,0.0004767,3]
[356671042,1742940648103,-2366.84,0.00047671,120]
[356671043,1742940648112,-500.0,0.00047671,2]
[356671045,1742940648122,-500.0,0.00047671,120]
[356671046,1742940648131,-500.0,0.00047671,30]
[356671047,1742940648141,-500.0,0.00047671,120]
[356671048,1742940648150,-500.0,0.00047671,120]
[356671049,1742940648160,-500.0,0.00047671,120]
[356671050,1742940648170,-280.469228,0.00047671,120]
[356671051,1742940648179,-500.0,0.00047671,120]
[356671052,1742940648189,-500.0,0.00047671,120]
[356671053,1742940648199,-590.11,0.00047671,120]
[356671055,1742940648208,-500.0,0.00047671,120]
[356671057,1742940648219,-500.0,0.00047671,120]
[356671059,1742940648229,-500.0,0.00047671,120]
[356671061,1742940648239,-500.0,0.00047671,120]
[356671063,1742940648248,-6572.25,0.00047671,2]
[356671065,1742940648258,-500.0,0.00047671,120]
[356671067,1742940648268,-500.0,0.00047671,7]
[356671069,1742940648277,-2745.65,0.00047671,120]
[356671071,1742940648287,-500.0,0.00047671,120]
[356671073,1742940648296,-200.3275436,0.00047671,120]
[356671075,1742940648306,-1072.46,0.00047671,120]
[356671077,1742940648316,-500.0,0.00047671,120]
[356671079,1742940648325,-500.0,0.00047671,120]
[356671081,1742940648335,-6011.47,0.00047671,120]
[356671083,1742940648344,-751.26,0.00047671,100]
[356671085,1742940648353,-500.0,0.00047671,120]
[356671087,1742940648363,-1274.62,0.00047671,120]
[356671089,1742940648372,-500.0,0.00047671,120]
[356671091,1742940648382,-500.0,0.00047671,120]
[356671093,1742940648392,-922.06,0.00047671,120]
[356671095,1742940648402,-500.54,0.00047671,120]
[356671097,1742940648411,-500.0,0.00047671,120]
[356671099,1742940648421,-539.52,0.00047671,120]
[356671101,1742940648431,-500.0,0.00047671,120]
[356671103,1742940648440,-500.0,0.00047671,120]
[356671105,1742940648450,-758.73,0.00047671,120]
[356671107,1742940648459,-500.0,0.00047671,2]
[356671109,1742940648469,-500.0,0.00047671,120]
[356671111,1742940648478,-500.0,0.00047671,120]
[356671113,1742940648488,-500.0,0.00047671,120]
[356671115,1742940648498,-500.0,0.00047671,120]
[356671117,1742940648508,-1026.37,0.00047671,120]
[356671119,1742940648518,-500.0,0.00047671,120]
[356671121,1742940648528,-500.0,0.00047671,120]
[356671123,1742940648538,-500.0,0.00047671,120]
[356671125,1742940648548,-500.0,0.00047671,120]
[356671127,1742940648560,-6032.53,0.00047671,120]
[356671129,1742940648570,-500.0,0.00047671,120]
[356671131,1742940648580,-500.0,0.00047671,120]
[356671133,1742940648589,-752.46,0.00047671,120]
[356671135,1742940648599,-500.0,0.00047671,120]
[356671137,1742940648610,-500.0,0.00047671,120]
[356671139,1742940648621,-2106.09,0.00047671,120]
[356671141,1742940648631,-500.0,0.00047671,120]
[356671143,1742940648642,-500.0,0.00047671,120]
[356671145,1742940648651,-500.0,0.00047671,120]
[356671147,1742940648661,-500.0,0.00047671,120]
[356671149,1742940648671,-500.0,0.00047671,120]
[356671151,1742940648680,-1859.8,0.00047671,120]
[356671153,1742940648689,-500.0,0.00047671,120]
[356671155,1742940648699,-1062.08,0.00047671,120]
[356671157,1742940648708,-500.0,0.00047671,120]
[356671159,1742940648719,-500.0,0.00047671,120]
[356671161,1742940648729,-546.18,0.00047671,120]
[356671163,1742940648738,-869.32,0.00047671,120]
[356671165,1742940648748,-500.0,0.00047671,120]
[356671167,1742940648757,-500.0,0.00047671,120]
[356671169,1742940648767,-500.0,0.00047671,120]
[356671171,1742940648777,-500.0,0.00047671,120]
[356671173,1742940648786,-2063.13,0.00047671,120]
[356671178,1742940648822,-500.0,0.00047671,120]
[356671180,1742940648832,-505.22701037,0.00047698,29]
[356671182,1742940648842,-8500.0,0.00047699,16]
[356671184,1742940648851,-1700.0,0.000477,17]
[356671186,1742940648860,-500.0,0.00047721,120]
[356671188,1742940648869,-600.43,0.00047721,7]
[356671190,1742940648878,-500.0,0.00047721,120]
[356671192,1742940648887,-500.0,0.00047721,120]
[356671194,1742940648897,-500.0,0.00047721,120]
[356671196,1742940648906,-500.0,0.00047721,120]
[356671198,1742940648915,-500.0,0.00047721,120]
[356671200,1742940648926,-500.0,0.00047721,120]
[356671202,1742940648935,-1136.0,0.00047721,120]
[356671204,1742940648944,-150.0,0.00047737,30]
[356671206,1742940648953,-2007.4319,0.00047752,3]
[356671208,1742940648963,-2000.0,0.00047752,3]
[356671210,1742940648972,-2000.0,0.00047752,3]
[356671212,1742940648982,-922.1007,0.00047752,3]
[356671214,1742940648991,-495.69,0.00047759,2]
[356671216,1742940649000,-150.0,0.00047761,30]
[356671218,1742940649010,-237.87,0.00047764,2]
[356671220,1742940649019,-700.0,0.0004777,3]
[356671221,1742940649028,-400.0,0.0004777,3]
[356671223,1742940649037,-500.0,0.00047788,120]
[356671225,1742940649046,-208.97882064,0.00047795,3]
[356671227,1742940649056,-300.0,0.000478,17]
[356671229,1742940649065,-500.997,0.00047811,120]
[356671231,1742940649074,-1000.0,0.00047811,120]
[356671233,1742940649084,-664.91,0.00047811,30]
[356671235,1742940649093,-500.0,0.00047811,120]
[356671237,1742940649103,-1217.0,0.00047843,59]
[356671239,1742940649112,-200.0,0.0004785,120]
[356671241,1742940649122,-150.0,0.00047853,7]
[356671243,1742940649132,-150.0,0.00047854,7]
[356671245,1742940649141,-495.69,0.00047856,2]
[356671247,1742940649151,-150.0,0.00047858,30]
[356671249,1742940649160,-3000.0,0.0004786,30]
[356671251,1742940649169,-700.0,0.0004787,3]
[356671253,1742940649178,-400.0,0.0004787,3]
[356671255,1742940649188,-444.50553769,0.00047884,120]
[356671257,1742940649197,-9899146.07816425,0.00047884,11]
[356671267,1742940649284,-283825.85654648,0.00047884,11]
[356676594,1742941097284,-1064.0,0.00043313,30]
[356676595,1742941097309,-225.0,0.0004389,30]
[356676596,1742941097334,-225.0,0.0004491,30]
[356676597,1742941097358,-389.0,0.00045,60]
[356676598,1742941097382,-500.0,0.00045263,120]
[356676599,1742941097407,-1064.0,0.00045592,30]
[356676600,1742941097433,-150.32,0.00045654,120]
[356676601,1742941097457,-500.0,0.00045811,120]
[356676602,1742941097482,-225.0,0.0004594,30]
[356676603,1742941097507,-500.0,0.00046359,120]
[356676604,1742941097532,-500.0,0.00046575,120]
[356676605,1742941097556,-500.0,0.00046575,120]
[356676606,1742941097580,-500.0,0.00046575,120]
[356676607,1742941097605,-1894.58,0.00046575,120]
[356676608,1742941097629,-500.0,0.00046575,120]
[356676609,1742941097653,-500.0,0.00046575,120]
[356676610,1742941097678,-500.0,0.00046575,120]
[356676611,1742941097702,-500.0,0.00046575,120]
[356676612,1742941097729,-500.0,0.00046575,120]
[356676613,1742941097752,-500.0,0.00046575,120]
[356676614,1742941097780,-500.0,0.00046575,120]
[356676615,1742941097804,-500.0,0.00046575,120]
[356676616,1742941097828,-500.0,0.00046575,120]
[356676617,1742941097851,-500.0,0.00046575,120]
[356676618,1742941097875,-500.0,0.00046575,120]
[356676619,1742941097900,-500.0,0.00046575,120]
[356676620,1742941097924,-500.0,0.00046575,120]
[356676621,1742941097948,-500.0,0.00046575,30]
[356676622,1742941097971,-500.0,0.00046575,120]
[356676623,1742941097994,-500.0,0.00046575,120]
[356676624,1742941098018,-500.0,0.00046575,120]
[356676625,1742941098042,-305.35831094,0.00046575,120]
[356676626,1742941098066,-500.0,0.00046575,120]
[356676627,1742941098089,-500.0,0.00046575,120]
[356676628,1742941098113,-500.0,0.00046575,120]
[356676629,1742941098138,-495.8407072,0.00046575,120]
[356676630,1742941098162,-500.0,0.00046575,120]
[356676631,1742941098187,-500.0,0.00046575,120]
[356676632,1742941098216,-500.0,0.00046575,120]
[356676633,1742941098241,-368.55429013,0.00046575,120]
[356676634,1742941098266,-512.01395733,0.00046575,120]
[356676635,1742941098292,-401.99236057,0.00046575,120]
[356676636,1742941098319,-500.0,0.00046575,120]
[356676637,1742941098344,-500.0,0.00046575,120]
[356676638,1742941098369,-946.67,0.00046575,120]
[356676639,1742941098393,-500.0,0.00046575,120]